[Event "GER-chW Blitz 2019"]
[Site "Magdeburg"]
[Date "2019.05.25"]
[Round "6.1"]
[White "Roesler, Hannah Clara Hed"]
[Black "Mader, Lena"]
[Result "0-1"]
[ECO "B13"]
[WhiteElo "1619"]
[BlackElo "1839"]
[Annotator "NA"]
[PlyCount "90"]
[EventDate "2019.05.25"]
[EventType "tourn"]
[EventCountry "GER"]
[SourceTitle "playchess.com"]
[Source "ChessBase"]
[SourceQuality "1"]
[TimeControl "180+2"]

1. e4 {[%emt 0:00:00]} c6 {[%emt 0:00:00]} 2. d4 {[%emt 0:00:01]} d5 {[%emt 0:00:00]} 3. exd5 {[%emt 0:00:01]} cxd5 {[%emt 0:00:00]} 4. c4 {[%emt 0:00:01]} Nf6 {[%emt 0:00:02]} 5. Nc3 {[%emt 0:00:01]} Nc6 {[%emt 0:00:02]} 6. Bg5 {[%emt 0:00:03]} e6 {[%emt 0:00:22]} 7. c5 {[%emt 0:00:06]} Be7 {[%emt 0:00:03]} 8. Nf3 {[%emt 0:00:17]} O-O {[%emt 0:00:02]} 9. Bb5 {[%emt 0:00:03]} a6 {[%emt 0:00:03]} 10. Bxc6 {[%emt 0:00:11]} bxc6 {[%emt 0:00:01]} 11. O-O {[%emt 0:00:16]} Nd7 {[%emt 0:00:04]} 12. Bf4 {[%emt 0:00:09]} a5 {[%emt 0:00:12]} 13. Na4 {[%emt 0:00:22]} Ba6 {[%emt 0:00:20]} 14. Re1 {[%emt 0:00:07]} Bb5 {[%emt 0:00:07]} 15. a3 {[%emt 0:00:12]} Bf6 {[%emt 0:00:22]} 16. Ne5 {[%emt 0:00:14]} Bxa4 {[%emt 0:00:14]} 17. Qxa4 {[%emt 0:00:06]} Nxe5 {[%emt 0:00:02]} 18. Bxe5 {[%emt 0:00:05]} Bxe5 {[%emt 0:00:02]} 19. Rxe5 {[%emt 0:00:02]} Qc7 {[%emt 0:00:08]} 20. Qd1 {[%emt 0:00:19]} Rab8 {[%emt 0:00:06]} 21. Qd2 {[%emt 0:00:12]} Rb3 {[%emt 0:00:10]} 22. Qc2 {[%emt 0:00:20]} Rfb8 {[%emt 0:00:05]} 23. Re2 {[%emt 0:00:05]} a4 {[%emt 0:00:13]} 24. h3 {[%emt 0:00:05]} h6 {[%emt 0:00:02]} 25. Rb1 {[%emt 0:00:07]} Qf4 {[%emt 0:00:02]} 26. Qd2 {[%emt 0:00:19]} Qf5 {[%emt 0:00:06]} 27. Ree1 Qg6 {[%emt 0:00:06]} 28. Qa5 {[%emt 0:00:09]} Rxh3 {[%emt 0:00:03]} 29. Qc7 {[%emt 0:00:02]} Rf8 {[%emt 0:00:06]} 30. b4 {[%emt 0:00:01]} axb3 {[%emt 0:00:01]} 31. Rxb3 {[%emt 0:00:01]} Rxb3 {[%emt 0:00:01]} 32. Qxc6 {[%emt 0:00:02]} Rb1 {[%emt 0:00:03]} 33. Rxb1 {[%emt 0:00:03]} Qxb1+ 34. Kh2 Qc1 {[%emt 0:00:06]} 35. g3 {[%emt 0:00:02]} Qxa3 {[%emt 0:00:01]} 36. Qb6 {[%emt 0:00:02]} Qf3 {[%emt 0:00:03]} 37. c6 {[%emt 0:00:02]} Qxf2+ 38. Kh3 {[%emt 0:00:00]} Qf5+ {[%emt 0:00:02]} 39. Kg2 {[%emt 0:00:01]} Qc2+ {[%emt 0:00:02]} 40. Kf3 {[%emt 0:00:01]} Qd3+ {[%emt 0:00:01]} 41. Kf2 {[%emt 0:00:01]} Qf5+ {[%emt 0:00:02]} 42. Ke3 {[%emt 0:00:02]} Qe4+ {[%emt 0:00:03]} 43. Kf2 {[%emt 0:00:02]} Ra8 {[%emt 0:00:03]} 44. c7 {[%emt 0:00:04]} Ra2+ {[%emt 0:00:04]} 45. Kg1 {[%emt 0:00:03]} Qe1# {[%emt 0:00:01]} 0-1

[Event "GER-chW Blitz 2019"]
[Site "Magdeburg"]
[Date "2019.05.25"]
[Round "6.2"]
[White "Zimmer, Elke"]
[Black "Braje, Monika"]
[Result "1-0"]
[ECO "B01"]
[WhiteElo "1926"]
[BlackElo "1781"]
[Annotator "NA"]
[PlyCount "117"]
[EventDate "2019.05.25"]
[EventType "tourn"]
[EventCountry "GER"]
[SourceTitle "playchess.com"]
[Source "ChessBase"]
[SourceQuality "1"]
[TimeControl "180+2"]

1. e4 {[%emt 0:00:00]} d5 {[%emt 0:00:00]} 2. exd5 {[%emt 0:00:00]} Nf6 {[%emt 0:00:00]} 3. d4 {[%emt 0:00:04]} Nxd5 {[%emt 0:00:00]} 4. Nf3 {[%emt 0:00:01]} g6 {[%emt 0:00:02]} 5. Bc4 {[%emt 0:00:01]} Nb6 {[%emt 0:00:02]} 6. Bb5+ {[%emt 0:00:02]} c6 {[%emt 0:00:01]} 7. Bd3 {[%emt 0:00:02]} Bg7 {[%emt 0:00:01]} 8. c3 {[%emt 0:00:01]} O-O {[%emt 0:00:02]} 9. O-O {[%emt 0:00:01]} N8d7 {[%emt 0:00:02]} 10. Bf4 {[%emt 0:00:02]} c5 {[%emt 0:00:05]} 11. Nbd2 {[%emt 0:00:04]} cxd4 {[%emt 0:00:03]} 12. Nxd4 {[%emt 0:00:01]} Bxd4 {[%emt 0:00:03]} 13. cxd4 {[%emt 0:00:02]} Nd5 {[%emt 0:00:04]} 14. Be3 {[%emt 0:00:03]} N7f6 {[%emt 0:00:05]} 15. Bc4 {[%emt 0:00:07]} Bg4 {[%emt 0:00:09]} 16. Be2 {[%emt 0:00:06]} Bf5 {[%emt 0:00:06]} 17. Rc1 {[%emt 0:00:09]} Rc8 {[%emt 0:00:02]} 18. a3 {[%emt 0:00:01]} Qb6 {[%emt 0:00:10]} 19. Nc4 {[%emt 0:00:06]} Qd8 {[%emt 0:00:11]} 20. Qa4 {[%emt 0:00:18]} a6 {[%emt 0:00:06]} 21. Qd1 {[%emt 0:00:06]} b5 {[%emt 0:00:09]} 22. Ne5 {[%emt 0:00:01]} Nxe3 {[%emt 0:00:10]} 23. fxe3 {[%emt 0:00:01]} Nd5 {[%emt 0:00:01]} 24. Qd2 {[%emt 0:00:08]} f6 {[%emt 0:00:13]} 25. Nd3 {[%emt 0:00:04]} Qd6 {[%emt 0:00:06]} 26. Bf3 {[%emt 0:00:05]} Nb6 {[%emt 0:00:09]} 27. Nf2 {[%emt 0:00:08]} Nc4 {[%emt 0:00:01]} 28. Qe1 {[%emt 0:00:04]} Qe6 {[%emt 0:00:07]} 29. e4 {[%emt 0:00:07]} Bxe4 {[%emt 0:00:11]} 30. Qxe4 {[%emt 0:00:04]} Qd7 {[%emt 0:00:01]} 31. Qd5+ {[%emt 0:00:03]} Qxd5 {[%emt 0:00:04]} 32. Bxd5+ {[%emt 0:00:01]} Kg7 {[%emt 0:00:02]} 33. Bxc4 {[%emt 0:00:01]} bxc4 {[%emt 0:00:01]} 34. Rc3 {[%emt 0:00:01]} Rfd8 {[%emt 0:00:01]} 35. Rd1 {[%emt 0:00:01]} Kf7 {[%emt 0:00:02]} 36. Ne4 {[%emt 0:00:05]} e5 {[%emt 0:00:03]} 37. d5 {[%emt 0:00:01]} f5 {[%emt 0:00:07]} 38. Ng5+ {[%emt 0:00:02]} Kg7 {[%emt 0:00:01]} 39. Ne6+ {[%emt 0:00:01]} Kf6 {[%emt 0:00:03]} 40. Nxd8 {[%emt 0:00:01]} Rxd8 {[%emt 0:00:00]} 41. Rxc4 {[%emt 0:00:02]} e4 {[%emt 0:00:01]} 42. Kf2 {[%emt 0:00:01]} Ke5 {[%emt 0:00:01]} 43. d6 {[%emt 0:00:02]} f4 {[%emt 0:00:03]} 44. Rc5+ {[%emt 0:00:04]} Ke6 {[%emt 0:00:01]} 45. Rc6 {[%emt 0:00:05]} e3+ {[%emt 0:00:02]} 46. Kf3 {[%emt 0:00:01]} g5 {[%emt 0:00:02]} 47. h3 {[%emt 0:00:01]} Kd7 {[%emt 0:00:01]} 48. Rc7+ {[%emt 0:00:02]} Ke8 {[%emt 0:00:03]} 49. d7+ {[%emt 0:00:05]} Ke7 {[%emt 0:00:08]} 50. Rd4 {[%emt 0:00:01]} h6 {[%emt 0:00:07]} 51. b4 {[%emt 0:00:03]} h5 {[%emt 0:00:03]} 52. Re4+ {[%emt 0:00:06]} Kd6 {[%emt 0:00:01]} 53. Rc5 {[%emt 0:00:03]} g4+ {[%emt 0:00:13]} 54. hxg4 {[%emt 0:00:01]} hxg4+ {[%emt 0:00:00]} 55. Kxf4 {[%emt 0:00:02]} Rf8+ {[%emt 0:00:01]} 56. Kxe3 {[%emt 0:00:02]} Kxd7 {[%emt 0:00:00]} 57. Rd5+ {[%emt 0:00:02]} Kc6 {[%emt 0:00:01]} 58. Rdd4 {[%emt 0:00:04]} g3 {[%emt 0:00:02]} 59. Rg4 {[%emt 0:00:02] Kd5 [%clk 0:01:06] Ke4+} 1-0

[Event "GER-chW Blitz 2019"]
[Site "Magdeburg"]
[Date "2019.05.25"]
[Round "6.3"]
[White "Kopylov, Luba"]
[Black "Schulze, Lara"]
[Result "0-1"]
[ECO "E44"]
[WhiteElo "2078"]
[BlackElo "2160"]
[Annotator "NA"]
[PlyCount "65"]
[EventDate "2019.05.25"]
[EventType "tourn"]
[EventCountry "GER"]
[SourceTitle "playchess.com"]
[Source "ChessBase"]
[SourceQuality "1"]
[TimeControl "180+2"]

1. d4 {[%emt 0:00:00]} Nf6 {[%emt 0:00:00]} 2. c4 {[%emt 0:00:02]} e6 {[%emt 0:00:00]} 3. Nc3 {[%emt 0:00:06]} Bb4 {[%emt 0:00:01]} 4. e3 {[%emt 0:00:01]} b6 {[%emt 0:00:03]} 5. Nge2 {[%emt 0:00:02]} c5 {[%emt 0:00:02]} 6. a3 {[%emt 0:00:03]} Ba5 {[%emt 0:00:00]} 7. dxc5 {[%emt 0:00:18]} bxc5 {[%emt 0:00:01]} 8. Qa4 {[%emt 0:00:04]} Nc6 {[%emt 0:00:13]} 9. Bd2 {[%emt 0:00:11]} O-O {[%emt 0:00:13]} 10. e4 {[%emt 0:00:20]} Rb8 {[%emt 0:00:05]} 11. e5 {[%emt 0:00:07]} Nxe5 {[%emt 0:00:15]} 12. Nc1 {[%emt 0:00:40]} Rxb2 {[%emt 0:00:16]} 13. Nb3 {[%emt 0:00:03]} Rxd2 {[%emt 0:00:44]} 14. Nxa5 {[%emt 0:00:34]} Rd4 {[%emt 0:00:18]} 15. Nb3 {[%emt 0:00:10]} Ne4 {[%emt 0:00:37]} 16. Nb5 {[%emt 0:00:30]} Nd3+ {[%emt 0:00:10]} 17. Bxd3 {[%emt 0:00:07]} Rxd3 {[%emt 0:00:01]} 18. Ke2 {[%emt 0:00:03]} a6 {[%emt 0:00:13]} 19. Kxd3 {[%emt 0:00:04]} axb5 {[%emt 0:00:01]} 20. Qxb5 {[%emt 0:00:03]} Nxf2+ {[%emt 0:00:01]} 21. Ke2 {[%emt 0:00:04]} Nxh1 {[%emt 0:00:01]} 22. Rxh1 {[%emt 0:00:01]} d6 {[%emt 0:00:07]} 23. Na5 {[%emt 0:00:04]} Qh4 {[%emt 0:00:07]} 24. Qc6 {[%emt 0:00:05]} Qg4+ {[%emt 0:00:01]} 25. Qf3 {[%emt 0:00:02]} Qd4 {[%emt 0:00:03]} 26. Rd1 {[%emt 0:00:03]} Qb2+ {[%emt 0:00:05]} 27. Rd2 {[%emt 0:00:01]} Qb6 {[%emt 0:00:01]} 28. Nc6 {[%emt 0:00:02]} Bb7 {[%emt 0:00:02]} 29. Rxd6 {[%emt 0:00:03]} Qb2+ {[%emt 0:00:06]} 30. Rd2 {[%emt 0:00:02]} Qb6 {[%emt 0:00:04]} 31. Ne7+ {[%emt 0:00:02]} Kh8 {[%emt 0:00:01]} 32. Qh3 {[%emt 0:00:03]} Qc7 {[%emt 0:00:05]} 33. Qh4 0-1

[Event "GER-chW Blitz 2019"]
[Site "Magdeburg"]
[Date "2019.05.25"]
[Round "6.4"]
[White "Gheng, Simona"]
[Black "Kushka, Alena"]
[Result "1/2-1/2"]
[ECO "B20"]
[WhiteElo "1991"]
[BlackElo "2148"]
[Annotator "NA"]
[PlyCount "74"]
[EventDate "2019.05.25"]
[EventType "tourn"]
[EventCountry "GER"]
[SourceTitle "playchess.com"]
[Source "ChessBase"]
[SourceQuality "1"]
[TimeControl "180+2"]

1. e4 {[%emt 0:00:00]} c5 {[%emt 0:00:00]} 2. c4 {[%emt 0:00:00]} Nc6 {[%emt 0:00:00]} 3. Nc3 {[%emt 0:00:01]} g6 {[%emt 0:00:01]} 4. g3 {[%emt 0:00:00]} Bg7 5. Bg2 Nf6 {[%emt 0:00:03]} 6. d3 {[%emt 0:00:01]} O-O {[%emt 0:00:03]} 7. Nge2 {[%emt 0:00:01]} d6 {[%emt 0:00:03]} 8. O-O {[%emt 0:00:02]} Rb8 {[%emt 0:00:02]} 9. a3 a6 {[%emt 0:00:03]} 10. a4 {[%emt 0:00:05]} Bg4 {[%emt 0:00:11]} 11. f3 {[%emt 0:00:02]} Bd7 {[%emt 0:00:05]} 12. f4 {[%emt 0:00:01]} Bg4 {[%emt 0:00:11]} 13. h3 {[%emt 0:00:01]} Bxe2 {[%emt 0:00:08]} 14. Nxe2 {[%emt 0:00:01]} Qc7 {[%emt 0:00:09]} 15. Rb1 {[%emt 0:00:03]} b5 {[%emt 0:00:03]} 16. axb5 {[%emt 0:00:02]} axb5 {[%emt 0:00:01]} 17. cxb5 {[%emt 0:00:14]} Rxb5 {[%emt 0:00:01]} 18. f5 {[%emt 0:00:05]} Ne5 {[%emt 0:00:18]} 19. Bf4 {[%emt 0:00:06]} Rfb8 {[%emt 0:00:06]} 20. Qc2 {[%emt 0:00:09]} Qb6 {[%emt 0:00:12]} 21. Bxe5 {[%emt 0:00:10]} dxe5 {[%emt 0:00:03]} 22. Nc3 {[%emt 0:00:01]} Rxb2 {[%emt 0:00:11]} 23. Rxb2 {[%emt 0:00:03]} Qxb2 {[%emt 0:00:02]} 24. Qxb2 {[%emt 0:00:02]} Rxb2 {[%emt 0:00:02]} 25. Na4 {[%emt 0:00:02]} Rc2 {[%emt 0:00:01]} 26. Rb1 {[%emt 0:00:03]} Bh6 {[%emt 0:00:07]} 27. fxg6 {[%emt 0:00:13]} hxg6 {[%emt 0:00:07]} 28. Rb2 {[%emt 0:00:08]} Rc1+ {[%emt 0:00:10]} 29. Kf2 {[%emt 0:00:03]} Kg7 {[%emt 0:00:17]} 30. Rb5 {[%emt 0:00:15]} Rc2+ {[%emt 0:00:04]} 31. Kf3 {[%emt 0:00:02]} Nd7 {[%emt 0:00:21]} 32. Rb7 {[%emt 0:00:04]} Nf8 {[%emt 0:00:05]} 33. Rxe7 {[%emt 0:00:05]} Ne6 {[%emt 0:00:02]} 34. g4 {[%emt 0:00:15]} Nd4+ {[%emt 0:00:04]} 35. Kg3 {[%emt 0:00:05]} Bf4+ {[%emt 0:00:01]} 36. Kh4 {[%emt 0:00:03]} Rxg2 {[%emt 0:00:03]} 37. Nxc5 Nf3# {[%emt 0:00:05]} 1/2-1/2

[Event "GER-chW Blitz 2019"]
[Site "Magdeburg"]
[Date "2019.05.25"]
[Round "6.5"]
[White "Kunze, Kerstin"]
[Black "Ries, Jutta"]
[Result "1-0"]
[ECO "B04"]
[WhiteElo "2066"]
[BlackElo "2017"]
[Annotator "NA"]
[PlyCount "77"]
[EventDate "2019.05.25"]
[EventType "tourn"]
[EventCountry "GER"]
[SourceTitle "playchess.com"]
[Source "ChessBase"]
[SourceQuality "1"]
[TimeControl "180+2"]

1. e4 {[%emt 0:00:00]} Nf6 {[%emt 0:00:00]} 2. e5 {[%emt 0:00:02]} Nd5 {[%emt 0:00:00]} 3. d4 {[%emt 0:00:06]} d6 {[%emt 0:00:01]} 4. Nf3 {[%emt 0:00:01]} g6 {[%emt 0:00:05]} 5. c4 {[%emt 0:00:16]} Nb6 {[%emt 0:00:01]} 6. Bd3 {[%emt 0:00:10]} Nc6 {[%emt 0:00:09]} 7. exd6 {[%emt 0:00:11]} cxd6 {[%emt 0:00:02]} 8. O-O {[%emt 0:00:08]} Bg7 {[%emt 0:00:03]} 9. Be3 {[%emt 0:00:01]} O-O {[%emt 0:00:03]} 10. h3 {[%emt 0:00:12]} Nb4 {[%emt 0:00:37]} 11. Be2 {[%emt 0:00:04]} Bf5 {[%emt 0:00:04]} 12. Na3 {[%emt 0:00:00]} Rc8 {[%emt 0:00:03]} 13. Nh4 {[%emt 0:00:10]} Be6 {[%emt 0:00:39]} 14. Qd2 {[%emt 0:00:14]} Na6 {[%emt 0:00:10]} 15. Rac1 {[%emt 0:00:15]} Nb8 {[%emt 0:00:53]} 16. Nb5 {[%emt 0:00:13]} a6 {[%emt 0:00:02]} 17. Na7 {[%emt 0:00:14]} Nxc4 {[%emt 0:00:11]} 18. Bxc4 {[%emt 0:00:07]} Rxc4 {[%emt 0:00:01]} 19. d5 {[%emt 0:00:16]} Rxc1 {[%emt 0:00:02]} 20. Rxc1 {[%emt 0:00:02]} Bd7 {[%emt 0:00:01]} 21. Qb4 {[%emt 0:00:09]} b5 {[%emt 0:00:06]} 22. Nc6 {[%emt 0:00:05]} Nxc6 {[%emt 0:00:04]} 23. dxc6 {[%emt 0:00:01]} Bc8 {[%emt 0:00:01]} 24. Nf3 {[%emt 0:00:13]} Qc7 {[%emt 0:00:02]} 25. Nd4 {[%emt 0:00:06]} Bxd4 {[%emt 0:00:04]} 26. Bxd4 {[%emt 0:00:02]} Be6 {[%emt 0:00:03]} 27. Qd2 {[%emt 0:00:03]} Bxa2 {[%emt 0:00:04]} 28. Qh6 {[%emt 0:00:19]} f6 {[%emt 0:00:01]} 29. Qe3 {[%emt 0:00:05]} Bd5 {[%emt 0:00:02]} 30. Bb6 {[%emt 0:00:03]} Qc8 {[%emt 0:00:01]} 31. c7 {[%emt 0:00:01]} Bb7 {[%emt 0:00:01]} 32. Qxe7 {[%emt 0:00:02]} d5 {[%emt 0:00:08]} 33. Re1 {[%emt 0:00:02]} Bc6 {[%emt 0:00:02]} 34. Re6 {[%emt 0:00:02]} Bd7 {[%emt 0:00:02]} 35. Rxf6 {[%emt 0:00:01]} Rxf6 {[%emt 0:00:02]} 36. Qxf6 {[%emt 0:00:01]} Qf8 {[%emt 0:00:02]} 37. Qe5 {[%emt 0:00:04]} Bc8 {[%emt 0:00:01]} 38. Bd4 {[%emt 0:00:01]} Qf5 {[%emt 0:00:05]} 39. Qg7# 1-0

[Event "GER-chW Blitz 2019"]
[Site "Magdeburg"]
[Date "2019.05.25"]
[Round "6.6"]
[White "Kreismann, Franziska"]
[Black "Lubbe, Melanie"]
[Result "0-1"]
[ECO "E61"]
[WhiteElo "1589"]
[BlackElo "2278"]
[Annotator "NA"]
[PlyCount "78"]
[EventDate "2019.05.25"]
[EventType "tourn"]
[EventCountry "GER"]
[SourceTitle "playchess.com"]
[Source "ChessBase"]
[SourceQuality "1"]
[TimeControl "180+2"]

1. d4 {[%emt 0:00:00]} Nf6 {[%emt 0:00:00]} 2. c4 {[%emt 0:00:01]} g6 {[%emt 0:00:00]} 3. Nc3 {[%emt 0:00:02]} Bg7 {[%emt 0:00:00]} 4. Nf3 {[%emt 0:00:02]} O-O {[%emt 0:00:01]} 5. Bg5 {[%emt 0:00:04]} d6 {[%emt 0:00:02]} 6. Bxf6 {[%emt 0:00:02]} Bxf6 {[%emt 0:00:02]} 7. e3 {[%emt 0:00:01]} Bg7 {[%emt 0:00:02]} 8. Bd3 {[%emt 0:00:02]} Nd7 {[%emt 0:00:02]} 9. O-O {[%emt 0:00:04]} e5 {[%emt 0:00:01]} 10. dxe5 {[%emt 0:00:06]} dxe5 {[%emt 0:00:03]} 11. Bc2 {[%emt 0:00:08]} c6 {[%emt 0:00:02]} 12. b3 {[%emt 0:00:07]} Qe7 {[%emt 0:00:04]} 13. Re1 {[%emt 0:00:13]} e4 {[%emt 0:00:16]} 14. Nd4 {[%emt 0:00:04]} c5 {[%emt 0:00:05]} 15. Nde2 {[%emt 0:00:04]} f5 {[%emt 0:00:05]} 16. Ng3 {[%emt 0:00:19]} Ne5 {[%emt 0:00:04]} 17. Nd5 {[%emt 0:00:11]} Qf7 {[%emt 0:00:01]} 18. Nf4 {[%emt 0:00:14]} Be6 {[%emt 0:00:26]} 19. h4 {[%emt 0:00:01]} Rad8 {[%emt 0:00:02]} 20. Qe2 {[%emt 0:00:07]} Nd3 {[%emt 0:00:23]} 21. Red1 {[%emt 0:00:11]} Bxa1 {[%emt 0:00:05]} 22. Bxd3 {[%emt 0:00:17]} exd3 {[%emt 0:00:10]} 23. Nxd3 {[%emt 0:00:05]} Bg7 {[%emt 0:00:05]} 24. h5 {[%emt 0:00:09]} b6 {[%emt 0:00:04]} 25. Re1 {[%emt 0:00:11]} Rd7 {[%emt 0:00:03]} 26. Nf4 {[%emt 0:00:01]} Rfd8 {[%emt 0:00:03]} 27. hxg6 {[%emt 0:00:04]} hxg6 {[%emt 0:00:02]} 28. Qf3 {[%emt 0:00:19]} Be5 {[%emt 0:00:03]} 29. Nfe2 {[%emt 0:00:05]} Qg7 {[%emt 0:00:07]} 30. a4 {[%emt 0:00:12]} Rd1 {[%emt 0:00:02]} 31. Rxd1 {[%emt 0:00:07]} Rxd1+ {[%emt 0:00:01]} 32. Nf1 {[%emt 0:00:01]} Ra1 {[%emt 0:00:23]} 33. Nf4 {[%emt 0:00:13]} Bxf4 {[%emt 0:00:01]} 34. Qxf4 {[%emt 0:00:03]} Qd7 {[%emt 0:00:05]} 35. Qb8+ {[%emt 0:00:02]} Kf7 {[%emt 0:00:08]} 36. Qg3 {[%emt 0:00:03]} Qd1 {[%emt 0:00:04]} 37. Kh2 {[%emt 0:00:04]} Qh5+ {[%emt 0:00:14]} 38. Kg1 {[%emt 0:00:07]} Rxf1+ {[%emt 0:00:03]} 39. Kxf1 {[%emt 0:00:00]} Qd1# 0-1

[Event "GER-chW Blitz 2019"]
[Site "Magdeburg"]
[Date "2019.05.25"]
[Round "6.7"]
[White "Daemering, Katrin"]
[Black "Fuchs, Judith"]
[Result "0-1"]
[ECO "A05"]
[WhiteElo "2003"]
[BlackElo "2218"]
[Annotator "NA"]
[PlyCount "116"]
[EventDate "2019.05.25"]
[EventType "tourn"]
[EventCountry "GER"]
[SourceTitle "playchess.com"]
[Source "ChessBase"]
[SourceQuality "1"]
[TimeControl "180+2"]

1. Nf3 {[%emt 0:00:00]} Nf6 {[%emt 0:00:00]} 2. g3 {[%emt 0:00:00]} b5 {[%emt 0:00:00]} 3. Bg2 {[%emt 0:00:01]} Bb7 {[%emt 0:00:01]} 4. d3 {[%emt 0:00:01]} e6 {[%emt 0:00:01]} 5. e4 {[%emt 0:00:02]} d6 {[%emt 0:00:04]} 6. O-O {[%emt 0:00:03]} Be7 {[%emt 0:00:01]} 7. h3 {[%emt 0:00:01]} O-O {[%emt 0:00:02]} 8. Be3 {[%emt 0:00:03]} c5 {[%emt 0:00:01]} 9. Nbd2 {[%emt 0:00:02]} Qc7 {[%emt 0:00:02]} 10. Ne1 {[%emt 0:00:09]} Nbd7 {[%emt 0:00:08]} 11. f4 {[%emt 0:00:01]} Rfd8 {[%emt 0:00:20]} 12. g4 {[%emt 0:00:05]} Nb6 {[%emt 0:00:03]} 13. g5 {[%emt 0:00:03]} Nfd7 {[%emt 0:00:01]} 14. Qh5 {[%emt 0:00:04]} g6 {[%emt 0:00:12]} 15. Qg4 {[%emt 0:00:02]} Bf8 {[%emt 0:00:03]} 16. c3 {[%emt 0:00:15]} d5 {[%emt 0:00:09]} 17. Rd1 {[%emt 0:00:06]} b4 {[%emt 0:00:11]} 18. d4 {[%emt 0:00:12]} bxc3 {[%emt 0:00:24]} 19. bxc3 {[%emt 0:00:01]} Na4 {[%emt 0:00:05]} 20. Nb1 {[%emt 0:00:19]} Nb2 {[%emt 0:00:05]} 21. Rc1 {[%emt 0:00:05]} Nc4 {[%emt 0:00:01]} 22. Bf2 {[%emt 0:00:09]} dxe4 {[%emt 0:00:03]} 23. Bg3 {[%emt 0:00:07]} Ne3 {[%emt 0:00:10]} 24. Qe2 {[%emt 0:00:01]} Nxf1 {[%emt 0:00:02]} 25. Qxf1 {[%emt 0:00:01]} cxd4 {[%emt 0:00:03]} 26. Nc2 {[%emt 0:00:14]} d3 {[%emt 0:00:11]} 27. Nd4 {[%emt 0:00:03]} Bg7 {[%emt 0:00:06]} 28. Kh2 {[%emt 0:00:05]} Qb6 {[%emt 0:00:12]} 29. Bf2 {[%emt 0:00:07]} Qa5 {[%emt 0:00:05]} 30. a3 {[%emt 0:00:12]} Rac8 {[%emt 0:00:06]} 31. Qe1 {[%emt 0:00:04]} Nc5 {[%emt 0:00:05]} 32. Qe3 {[%emt 0:00:10]} Qa4 {[%emt 0:00:15]} 33. Nd2 {[%emt 0:00:13]} Qxa3 {[%emt 0:00:04]} 34. Nc4 {[%emt 0:00:04]} Qa2 {[%emt 0:00:09]} 35. Ne5 {[%emt 0:00:02]} d2 {[%emt 0:00:05]} 36. Rd1 {[%emt 0:00:01]} Nb3 {[%emt 0:00:02]} 37. Nxb3 {[%emt 0:00:08]} Qxb3 {[%emt 0:00:02]} 38. Rxd2 {[%emt 0:00:01]} Rxd2 39. Qxd2 {[%emt 0:00:01]} Qxc3 {[%emt 0:00:07]} 40. Qd7 {[%emt 0:00:04]} Qc7 {[%emt 0:00:07]} 41. Qxc7 {[%emt 0:00:09]} Rxc7 {[%emt 0:00:01]} 42. Bxa7 {[%emt 0:00:01]} Bxe5 {[%emt 0:00:07]} 43. fxe5 {[%emt 0:00:01]} Bd5 {[%emt 0:00:02]} 44. Be3 {[%emt 0:00:04]} Rc3 {[%emt 0:00:01]} 45. Bf4 {[%emt 0:00:04]} e3 {[%emt 0:00:03]} 46. Bxd5 {[%emt 0:00:05]} exd5 {[%emt 0:00:01]} 47. Kg3 {[%emt 0:00:02]} d4 {[%emt 0:00:03]} 48. Kf3 {[%emt 0:00:01]} Kf8 {[%emt 0:00:02]} 49. Ke2 {[%emt 0:00:02]} Ke7 {[%emt 0:00:02]} 50. h4 {[%emt 0:00:03]} Ke6 {[%emt 0:00:00]} 51. Bg3 {[%emt 0:00:01]} Kf5 {[%emt 0:00:02]} 52. Bh2 {[%emt 0:00:02]} Ke4 {[%emt 0:00:01]} 53. Bg1 {[%emt 0:00:01]} d3+ {[%emt 0:00:01]} 54. Kd1 {[%emt 0:00:01]} Ra3 {[%emt 0:00:02]} 55. Kc1 {[%emt 0:00:02]} Ra1+ {[%emt 0:00:01]} 56. Kb2 {[%emt 0:00:01]} Rxg1 {[%emt 0:00:01]} 57. Kc3 {[%emt 0:00:01]} d2 {[%emt 0:00:01]} 58. Kc2 {[%emt 0:00:00]} d1=Q+ {[%emt 0:00:02]} 0-1

[Event "GER-chW Blitz 2019"]
[Site "Magdeburg"]
[Date "2019.05.25"]
[Round "6.8"]
[White "Sieber, Fiona"]
[Black "Kotyk, Valeriya"]
[Result "1-0"]
[ECO "C11"]
[WhiteElo "2250"]
[BlackElo "1739"]
[Annotator "NA"]
[PlyCount "68"]
[EventDate "2019.05.25"]
[EventType "tourn"]
[EventCountry "GER"]
[SourceTitle "playchess.com"]
[Source "ChessBase"]
[SourceQuality "1"]
[TimeControl "180+2"]

1. e4 {[%emt 0:00:00]} e6 {[%emt 0:00:00]} 2. d4 {[%emt 0:00:01]} d5 {[%emt 0:00:00]} 3. Nc3 {[%emt 0:00:02]} Nf6 {[%emt 0:00:02]} 4. e5 {[%emt 0:00:01]} Nfd7 {[%emt 0:00:01]} 5. f4 {[%emt 0:00:01]} c5 {[%emt 0:00:01]} 6. Nf3 {[%emt 0:00:01]} Nc6 {[%emt 0:00:01]} 7. Be3 {[%emt 0:00:01]} Qb6 {[%emt 0:00:08]} 8. Na4 {[%emt 0:00:13]} Qa5+ {[%emt 0:00:06]} 9. c3 {[%emt 0:00:01]} cxd4 {[%emt 0:00:05]} 10. b4 {[%emt 0:00:00]} Qc7 {[%emt 0:00:05]} 11. Nxd4 {[%emt 0:00:07]} a6 {[%emt 0:00:05]} 12. Bd3 {[%emt 0:00:18]} b5 {[%emt 0:00:09]} 13. Nb2 {[%emt 0:00:07]} Nb6 {[%emt 0:00:03]} 14. O-O {[%emt 0:00:12]} Nc4 {[%emt 0:00:01]} 15. Nxc4 {[%emt 0:00:06]} dxc4 {[%emt 0:00:01]} 16. Be4 {[%emt 0:00:02]} Bb7 {[%emt 0:00:02]} 17. Qf3 {[%emt 0:00:28]} Nxd4 {[%emt 0:00:18]} 18. Bxd4 {[%emt 0:00:01]} Bxe4 {[%emt 0:00:02]} 19. Qxe4 {[%emt 0:00:01]} Rd8 {[%emt 0:00:03]} 20. f5 {[%emt 0:00:02]} h5 {[%emt 0:00:21]} 21. fxe6 {[%emt 0:00:02]} fxe6 {[%emt 0:00:22]} 22. Qg6+ {[%emt 0:00:02]} Kd7 {[%emt 0:00:01]} 23. a4 {[%emt 0:00:02]} bxa4 {[%emt 0:00:11]} 24. Rxa4 {[%emt 0:00:02]} Qc6 {[%emt 0:00:08]} 25. Ra5 {[%emt 0:00:09]} Rh6 {[%emt 0:00:28]} 26. Rf7+ {[%emt 0:00:11]} Kc8 {[%emt 0:00:01]} 27. Qg5 {[%emt 0:00:06]} Rh8 {[%emt 0:00:25]} 28. Rxf8 {[%emt 0:00:18]} Rhxf8 {[%emt 0:00:15]} 29. Rc5 {[%emt 0:00:01]} Qxc5 {[%emt 0:00:01]} 30. Bxc5 {[%emt 0:00:02]} Rf7 {[%emt 0:00:04]} 31. h3 {[%emt 0:00:02]} Rd1+ {[%emt 0:00:13]} 32. Kh2 {[%emt 0:00:01]} Rd3 {[%emt 0:00:08]} 33. Qg6 {[%emt 0:00:02]} Rfd7 {[%emt 0:00:08]} 34. Qxe6 {[%emt 0:00:01]} Rxc3 1-0